fUST/lending_fUST_20241031
["ID","MTS","AMOUNT","RATE_DAILY","PERIOD"]
[341065143,1730320236840,-189.68843165,0.00034032,7]
[341065144,1730320236850,-247.4958109,0.00034032,7]
[341065145,1730320236860,-500.0,0.00034032,7]
[341065146,1730320236869,-647.6584797,0.00034032,7]
[341065147,1730320236879,-500.0,0.00034032,7]
[341065148,1730320236890,-500.0,0.00034032,7]
[341065149,1730320236903,-500.0,0.00034032,7]
[341065150,1730320236913,-500.0,0.00034032,7]
[341065151,1730320236923,-500.0,0.00034032,7]
[341065152,1730320236933,-500.0,0.00034032,7]
[341065153,1730320236943,-407.1589146,0.00034032,7]
[341065154,1730320236953,-500.0,0.00034032,7]
[341065155,1730320236963,-500.0,0.00034032,7]
[341065156,1730320236972,-500.0,0.00034032,7]
[341065157,1730320236982,-500.0,0.00034032,7]
[341065158,1730320236992,-500.0,0.00034032,7]
[341065159,1730320237001,-392.78734211,0.00034032,7]
[341065160,1730320237011,-500.0,0.00034032,7]
[341065161,1730320237020,-500.0,0.00034032,7]
[341065162,1730320237030,-500.0,0.00034032,7]
[341065163,1730320237039,-500.0,0.00034032,7]
[341065164,1730320237048,-500.0,0.00034032,7]
[341065165,1730320237058,-459.15401148,0.00034032,7]
[341065166,1730320237067,-500.0,0.00034032,7]
[341065167,1730320237078,-412.66261066,0.00034032,7]
[341065168,1730320237088,-500.0,0.00034032,7]
[341065169,1730320237098,-500.0,0.00034032,7]
[341065170,1730320237108,-500.0,0.00034032,7]
[341065171,1730320237117,-500.0,0.00034032,7]
[341065172,1730320237127,-500.0,0.00034032,7]
[341065173,1730320237136,-500.0,0.00034032,7]
[341065174,1730320237145,-512.96467604,0.00034032,7]
[341065175,1730320237155,-500.0,0.00034032,7]
[341065176,1730320237164,-500.0,0.00034032,7]
[341065177,1730320237174,-500.0,0.00034032,7]
[341065178,1730320237183,-500.0,0.00034032,7]
[341065179,1730320237193,-500.0,0.00034032,7]
[341065180,1730320237202,-500.0,0.00034032,7]
[341065181,1730320237212,-500.0,0.00034032,7]
[341065182,1730320237221,-500.0,0.00034032,7]
[341065183,1730320237231,-500.0,0.00034032,7]
[341065184,1730320237240,-500.0,0.00034032,7]
[341065185,1730320237250,-500.0,0.00034032,7]
[341065186,1730320237259,-203.74188666,0.00034032,7]
[341065187,1730320237273,-500.0,0.00034032,7]
[341065188,1730320237283,-196.65,0.00034032,2]
[341065189,1730320237292,-196.65,0.00034032,2]
[341065190,1730320237301,-196.65,0.00034032,2]
[341065191,1730320237311,-196.65,0.00034032,2]
[341065192,1730320237320,-196.65,0.00034032,2]
[341065193,1730320237330,-196.65,0.00034032,2]
[341065194,1730320237341,-196.65,0.00034032,2]
[341065195,1730320237355,-196.65,0.00034032,2]
[341065196,1730320237364,-196.65,0.00034032,2]
[341065197,1730320237374,-196.65,0.00034032,2]
[341065198,1730320237384,-80554.65338276,0.00034033,2]
[341065215,1730320238547,-28053.71854047,0.00034033,2]
[341065216,1730320238557,-228.49474996,0.00034033,7]
[341065217,1730320238567,-500.0,0.00034033,2]
[341065218,1730320238577,-730.5258572,0.00034034,2]
[341065219,1730320238587,-158.77864073,0.00034048,2]
[341065220,1730320238597,-500.56752319,0.00034073,5]
[341065221,1730320238607,-500.0,0.00034073,5]
[341065222,1730320238617,-500.0,0.00034073,2]
[341065223,1730320238626,-158.77864073,0.00034073,2]
[341065224,1730320238636,-150.5,0.00034104,120]
[341065225,1730320238645,-151.0,0.00034108,7]
[341065226,1730320238656,-150.5,0.00034114,120]
[341065227,1730320238666,-247.23,0.00034124,10]
[341065228,1730320238676,-150.5,0.00034124,120]
[341065229,1730320238686,-394.0,0.0003413,31]
[341065230,1730320238695,-150.01,0.00034133,2]
[341065231,1730320238705,-3165.39604773,0.00034133,2]
[341065232,1730320238716,-2398.60907922,0.00034133,2]
[341065233,1730320238726,-23398.92415995,0.00034133,2]
[341065234,1730320238736,-500.0,0.00034133,7]
[341065235,1730320238745,-10794.11901718,0.00034134,2]
[341065236,1730320238757,-65500.8680165,0.00034134,2]
[341065331,1730320243399,-3535.07164417,0.00033933,2]
[341065333,1730320243409,-19863.85251578,0.00034134,2]
[341065394,1730320246379,-150.01,0.00034133,2]
[341065396,1730320246389,-2782.00256347,0.00034133,2]
[341065398,1730320246399,-215763.95220948,0.00034134,2]
[341065400,1730320246411,-198150.43551173,0.00034134,2]
[341065713,1730320665462,169.155374,0.00013973,2]
[341065714,1730321154157,-564.39000707,0.00028049,2]
[341065715,1730321154178,-200.0,0.000293,120]
[341065716,1730321154198,-469.96950035,0.00029452,2]
[341065717,1730321154218,-62.34411926,0.00029999,2]
[341065718,1730321175523,163.162804,0.00013973,2]
[341065719,1730321228137,-163.162804,0.00025156,2]
[341065720,1730321228161,-300.0,0.00029999,2]
[341065721,1730321228184,-300.0,0.00029999,2]
[341065722,1730321228205,-151.0,0.0003,120]
[341065723,1730321228227,-164.0,0.0003,2]
[341065724,1730321228248,-4425.35657275,0.0003,2]
[341065725,1730321228269,-182.0,0.0003,30]
[341065726,1730321228290,-465.24847502,0.00030924,2]
[341065727,1730321228313,-162.0,0.00030925,6]
[341065728,1730321228335,-200.0,0.00031,120]
[341065729,1730321228356,-361.500632,0.00031337,2]
[341065730,1730321228379,-2438.4484798,0.00031341,2]
[341065731,1730321228400,-173.856507,0.000315,2]
[341065732,1730321228422,-163.531204,0.00031512,2]
[341065733,1730321228443,-165.0,0.00031644,2]
[341065734,1730321228464,-162.0,0.00031746,6]
[341065735,1730321228492,-151.0,0.00031808,120]
[341065736,1730321228513,-361.500632,0.00032022,2]
[341065737,1730321228535,-393.0,0.00032332,2]
[341065738,1730321228559,-163.531204,0.00032333,2]
[341065739,1730321228580,-162.0,0.00032568,6]
[341065740,1730321228600,-200.0,0.000327,120]
[341065741,1730321228621,-361.500632,0.00032706,2]
[341065742,1730321228642,-187.0275088,0.00032877,120]
[341065743,1730321228663,-420.0,0.00032999,2]
[341065744,1730321228685,-155.0,0.00033,2]
[341065745,1730321228707,-151.0,0.00033147,2]
[341065746,1730321228728,-155.0,0.00033151,2]
[341065747,1730321228750,-163.531204,0.00033154,2]
[341065748,1730321228771,-162.0,0.00033389,7]
[341065749,1730321228792,-151.0,0.00033616,120]
[341065750,1730321228815,-157.084,0.0003399,30]
[341065751,1730321228835,-1500.0,0.00034007,2]
[341065752,1730321228855,-266.0,0.00034008,2]
[341065753,1730321228876,-309.7227447,0.00034008,2]
[341065754,1730321228897,-153.0,0.00034008,2]
[341065755,1730321228918,-153.0,0.00034008,2]
[341065756,1730321228939,-153.0,0.00034008,2]
[341065757,1730321228963,-153.0,0.00034008,2]
[341065758,1730321228984,-153.0,0.00034008,2]
[341065759,1730321229005,-153.0,0.00034008,2]
[341065760,1730321229027,-153.0,0.00034008,2]
[341065761,1730321229150,-454.1874596,0.00034017,2]
[341065762,1730321229172,-150.112234,0.000341,10]
[341065763,1730321229193,-150.5,0.00034104,120]
[341065764,1730321229214,-150.5,0.00034114,120]
[341065765,1730321229236,-510.04,0.00034124,3]
[341065766,1730321229256,-260.26,0.00034124,10]
[341065767,1730321229277,-150.5,0.00034124,120]
[341065768,1730321229299,-5000.0,0.0003413,2]
[341065769,1730321229327,-500.0,0.00034132,7]
[341065770,1730321229349,-578.19354296,0.00034132,7]
[341065771,1730321229370,-273.23933461,0.00034132,7]
[341065772,1730321229392,-222.27632155,0.00034132,2]
[341065773,1730321229414,-345.78560239,0.00034132,7]
[341065774,1730321229437,-390.32940845,0.00034132,7]
[341065775,1730321229460,-500.0,0.00034132,2]
[341065776,1730321229482,-5000.0,0.00034132,2]
[341065777,1730321229504,-236.36640523,0.00034133,7]
[341065778,1730321229528,-283.47012979,0.00034133,2]
[341065779,1730321229553,-1391.00128174,0.00034133,2]
[341065780,1730321229589,-163.39783078,0.00034133,7]
[341065781,1730321229614,-500.0,0.00034133,7]
[341065782,1730321229637,-173.24706763,0.00034133,7]
[341065783,1730321229660,-303.36093579,0.00034133,7]
[341065784,1730321229683,-264.04,0.00034133,2]
[341065785,1730321229704,-264.04,0.00034133,2]
[341065786,1730321229724,-264.04,0.00034133,2]
[341065787,1730321229745,-264.04,0.00034133,2]
[341065788,1730321229766,-264.04,0.00034133,2]
[341065789,1730321229789,-264.04,0.00034133,2]
[341065790,1730321229815,-264.04,0.00034133,2]
[341065791,1730321229835,-264.04,0.00034133,2]
[341065792,1730321229854,-264.04,0.00034133,2]
[341065793,1730321229874,-264.04,0.00034133,2]
[341065794,1730321229895,-5000.0,0.00034133,2]
[341065795,1730321229916,-5000.0,0.00034133,2]
[341065796,1730321229937,-5000.0,0.00034133,2]
[341065797,1730321229962,-18239.84463841,0.00034134,2]
[341065798,1730321230197,-73003.954455,0.00034134,2]
[341065799,1730321230244,-48548.90830305,0.00034134,2]
[341065800,1730321230282,-3962.17145599,0.00034134,2]
[341065801,1730321230319,-198.9554568,0.00034173,5]
[341065802,1730321230345,-635.19603236,0.00034173,5]
[341065803,1730321230375,-500.0,0.00034173,5]
[341065804,1730321230408,-500.0,0.00034173,5]
[341065805,1730321230441,-501.43004975,0.00034173,5]
[341065806,1730321230473,-500.3159791,0.00034173,5]
[341065807,1730321230497,-277.18196985,0.00034173,5]
[341065808,1730321230526,-500.0,0.00034173,5]
[341065809,1730321230557,-500.0,0.00034173,5]
[341065810,1730321230589,-500.0,0.00034173,2]
[341065811,1730321230616,-440.02763831,0.00034173,5]
[341065812,1730321230646,-169.28807023,0.00034173,5]
[341065813,1730321230675,-501.51344911,0.00034173,5]
[341065814,1730321230702,-500.0,0.00034173,5]
[341065815,1730321230731,-500.0,0.00034173,5]
[341065816,1730321230764,-500.0,0.00034173,5]
[341065817,1730321230796,-500.0,0.00034173,5]
[341065818,1730321230828,-500.0,0.00034173,2]
[341065819,1730321230857,-500.0,0.00034199,7]
[341065820,1730321230884,-4545.39259384,0.000342,10]
[341065821,1730321230911,-4545.39259384,0.000342,10]
[341065822,1730321230937,-4545.39259384,0.000342,10]
[341065823,1730321230967,-4545.39259384,0.000342,10]
[341065824,1730321230996,-16382.67245451,0.000342,10]
[341065825,1730321231023,-16382.67245451,0.000342,10]
[341065826,1730321231050,-16382.67245451,0.000342,10]
[341065827,1730321231079,-13710.67645656,0.000342,10]
[341065828,1730321231160,-2671.99599795,0.000342,10]
[341065829,1730321231183,-150.112233,0.000342,17]
[341065830,1730321231342,-150.112233,0.000342,17]
[341065831,1730321231373,-150.112233,0.000342,14]
[341065832,1730321231395,-162.0,0.0003421,7]
[341065833,1730321231417,-211.3245,0.00034234,2]
[341065834,1730321231439,-151.16121673,0.00034248,7]
[341065835,1730321231461,-151.16121673,0.00034248,7]
[341065836,1730321231482,-151.16121673,0.00034248,7]
[341065837,1730321231503,-151.16121673,0.00034248,7]
[341065838,1730321231523,-151.16121673,0.00034248,7]
[341065839,1730321231544,-151.16121673,0.00034248,7]
[341065840,1730321231567,-151.16121673,0.00034248,7]
[341065841,1730321231588,-151.16121673,0.00034248,7]
[341065842,1730321231609,-151.16121673,0.00034248,7]
[341065843,1730321231630,-151.16121673,0.00034248,7]
[341065844,1730321231652,-151.16121673,0.00034248,7]
[341065845,1730321231672,-151.16121673,0.00034248,7]
[341065846,1730321231693,-151.16121673,0.00034248,7]
[341065847,1730321231713,-151.16121673,0.00034248,7]
[341065848,1730321231735,-151.16121673,0.00034248,7]
[341065849,1730321231757,-151.16,0.00034248,7]
[341065850,1730321231778,-181.39346007,0.00034248,7]
[341065851,1730321231802,-181.39346007,0.00034248,7]
[341065852,1730321231825,-181.39346007,0.00034248,7]
[341065853,1730321231845,-181.39346007,0.00034248,7]
[341065854,1730321231867,-181.39346007,0.00034248,7]
[341065855,1730321231888,-181.39346007,0.00034248,7]
[341065856,1730321231910,-181.39346007,0.00034248,7]
[341065857,1730321231931,-181.39346007,0.00034248,7]
[341065858,1730321231954,-181.39346007,0.00034248,7]
[341065859,1730321231974,-181.39346007,0.00034248,7]
[341065860,1730321231995,-181.39346007,0.00034248,7]
[341065861,1730321232015,-181.39346007,0.00034248,7]
[341065862,1730321232036,-181.39346007,0.00034248,7]
[341065863,1730321232060,-181.39346007,0.00034248,7]
[341065864,1730321232081,-181.39346007,0.00034248,7]
[341065865,1730321232102,-181.39346007,0.00034248,7]
[341065866,1730321232123,-181.39346007,0.00034248,7]
[341065867,1730321232144,-181.39346007,0.00034248,7]
[341065868,1730321232165,-181.39346007,0.00034248,7]
[341065869,1730321232184,-1000.0,0.00034255,2]
[341065870,1730321232204,-1033.67465154,0.00034258,2]
[341065871,1730321232225,-150.112233,0.000343,18]
[341065872,1730321232246,-156.764053,0.000343,17]
[341065873,1730321232266,-150.112233,0.000343,17]
[341065874,1730321232287,-150.112233,0.000343,11]
[341065875,1730321232309,-150.112233,0.000343,13]
[341065876,1730321232329,-1000.0,0.00034324,2]
[341065877,1730321232350,-181.39,0.00034378,7]
[341065878,1730321232371,-158.62,0.00034379,7]
[341065879,1730321232391,-200.0,0.000344,120]
[341065880,1730321232412,-150.112236,0.000344,12]
[341065881,1730321232433,-150.112233,0.000344,17]
[341065882,1730321232455,-150.112233,0.000344,11]
[341065883,1730321232475,-150.112233,0.000344,17]
[341065884,1730321232497,-150.112233,0.000344,18]
[341065885,1730321232518,-150.112233,0.000344,18]
[341065886,1730321232538,-150.112233,0.000344,12]
[341065887,1730321232562,-150.112233,0.000344,10]
[341065888,1730321232582,-150.112236,0.000344,12]
[341065889,1730321232603,-151.0,0.0003447,3]
[341065890,1730321232623,-177.223482,0.0003447,3]
[341065891,1730321232644,-151.0,0.00034472,14]
[341065892,1730321232664,-151.0,0.00034472,14]
[341065893,1730321232685,-154.32324,0.00034472,14]
[341065894,1730321232706,-151.0,0.00034472,14]
[341065895,1730321232726,-151.0,0.00034472,14]
[341065896,1730321232745,-151.0,0.00034472,14]
[341065897,1730321232766,-151.0,0.00034472,14]
[341065898,1730321232786,-151.0,0.00034472,14]
[341065899,1730321232807,-151.0,0.00034472,14]
[341065900,1730321232829,-151.0,0.00034472,14]
[341065901,1730321232848,-151.0,0.00034472,14]
[341065902,1730321232869,-151.0,0.00034472,14]
[341065903,1730321232888,-151.0,0.00034472,14]
[341065904,1730321232909,-151.0,0.00034472,14]
[341065905,1730321232931,-151.0,0.00034472,14]
[341065906,1730321232954,-151.0,0.00034472,14]
[341065907,1730321232975,-275.365712,0.00034472,14]
[341065908,1730321232995,-151.0,0.00034472,14]
[341065909,1730321233017,-151.0,0.00034472,14]
[341065910,1730321233038,-151.0,0.00034472,6]
[341065911,1730321233061,-151.0,0.00034472,6]
[341065912,1730321233080,-151.0,0.00034472,6]
[341065913,1730321233101,-151.0,0.00034472,6]
[341065914,1730321233122,-151.0,0.00034472,6]
[341065915,1730321233142,-151.0,0.00034472,6]
[341065916,1730321233164,-151.0,0.00034472,6]
[341065917,1730321233185,-151.0,0.00034472,6]
[341065918,1730321233205,-166.566931,0.00034472,14]
[341065919,1730321233226,-166.566931,0.00034472,14]
[341065920,1730321233252,-166.566931,0.00034472,14]
[341065921,1730321233273,-166.566931,0.00034472,14]
[341065922,1730321233295,-166.566931,0.00034472,14]
[341065923,1730321233318,-166.566931,0.00034472,14]
[341065924,1730321233339,-166.566931,0.00034472,14]
[341065925,1730321233359,-166.566931,0.00034472,14]
[341065926,1730321233381,-166.566931,0.00034472,14]
[341065927,1730321233401,-166.566931,0.00034472,14]
[341065928,1730321233423,-166.566931,0.00034472,14]
[341065929,1730321233444,-166.566931,0.00034472,14]
[341065930,1730321233466,-166.566931,0.00034472,14]
[341065931,1730321233488,-166.566931,0.00034472,14]
[341065932,1730321233509,-166.566931,0.00034472,14]
[341065933,1730321233530,-166.566931,0.00034472,14]
[341065934,1730321233550,-277.742495,0.00034472,14]
[341065935,1730321233572,-166.566931,0.00034472,14]
[341065936,1730321233592,-277.742495,0.00034472,14]
[341065937,1730321233616,-166.566931,0.00034472,14]
[341065938,1730321233722,-277.742495,0.00034472,14]
[341065939,1730321233750,-166.566931,0.00034472,14]
[341065940,1730321233772,-223.455707,0.00034472,14]
[341065941,1730321233793,-166.566923,0.00034472,14]
[341065942,1730321233818,-277.742495,0.00034472,14]
[341065943,1730321233839,-277.742495,0.00034472,14]
[341065944,1730321233859,-277.742495,0.00034472,14]
[341065945,1730321233879,-277.742495,0.00034472,14]
[341065946,1730321233900,-277.742495,0.00034472,14]
[341065947,1730321233920,-277.742495,0.00034472,14]
[341065948,1730321233940,-277.742495,0.00034472,14]
[341065949,1730321233965,-277.742495,0.00034472,14]
[341065950,1730321233985,-277.742495,0.00034472,14]
[341065951,1730321234007,-277.742495,0.00034472,14]
[341065952,1730321234029,-277.742495,0.00034472,14]
[341065953,1730321234050,-277.742495,0.00034472,14]
[341065954,1730321234072,-277.742495,0.00034472,14]
[341065955,1730321234093,-277.742495,0.00034472,14]
[341065956,1730321234114,-277.742495,0.00034472,14]
[341065957,1730321234136,-277.742495,0.00034472,14]
[341065958,1730321234157,-277.74249,0.00034472,14]
[341065959,1730321234179,-574.912854,0.00034472,14]
[341065960,1730321234200,-574.912854,0.00034472,14]
[341065961,1730321234221,-574.912854,0.00034472,14]
[341065962,1730321234242,-574.912854,0.00034472,14]
[341065963,1730321234263,-574.912854,0.00034472,14]
[341065964,1730321234284,-574.912854,0.00034472,14]
[341065965,1730321234305,-574.912854,0.00034472,14]
[341065966,1730321234329,-574.912854,0.00034472,14]
[341065967,1730321234349,-574.912854,0.00034472,14]
[341065968,1730321234372,-574.912854,0.00034472,14]
[341065969,1730321234394,-574.912854,0.00034472,14]
[341065970,1730321234415,-574.912854,0.00034472,14]
[341065971,1730321234437,-574.912854,0.00034472,14]
[341065972,1730321234458,-574.912854,0.00034472,14]
[341065973,1730321234479,-574.912854,0.00034472,14]
[341065974,1730321234501,-574.912854,0.00034472,14]
[341065975,1730321234521,-574.912854,0.00034472,14]
[341065976,1730321234542,-574.912854,0.00034472,14]
[341065977,1730321234569,-574.912854,0.00034472,14]
[341065978,1730321234590,-574.912857,0.00034472,14]
[341065979,1730321234611,-157.548635,0.00034472,14]
[341065980,1730321234631,-157.548635,0.00034472,14]
[341065981,1730321234651,-157.548635,0.00034472,14]
[341065982,1730321234673,-157.548635,0.00034472,14]
[341065983,1730321234694,-157.548635,0.00034472,14]
[341065984,1730321234719,-157.548635,0.00034472,14]
[341065985,1730321234741,-157.548635,0.00034472,14]
[341065986,1730321234762,-157.548635,0.00034472,14]
[341065987,1730321234784,-157.548635,0.00034472,14]
[341065988,1730321234806,-157.548635,0.00034472,14]
[341065989,1730321234827,-157.548635,0.00034472,14]
[341065990,1730321234848,-157.548635,0.00034472,14]
[341065991,1730321234869,-157.548635,0.00034472,14]
[341065992,1730321234890,-157.548635,0.00034472,14]
[341065993,1730321234911,-157.548635,0.00034472,14]
[341065994,1730321234933,-157.548635,0.00034472,14]
[341065995,1730321234958,-157.548635,0.00034472,14]
[341065996,1730321234982,-157.548635,0.00034472,14]
[341065997,1730321235003,-157.548635,0.00034472,14]
[341065998,1730321235024,-157.548629,0.00034472,14]
[341065999,1730321235047,-151.0,0.00034472,14]
[341066000,1730321235070,-151.0,0.00034472,14]
[341066001,1730321235094,-151.0,0.00034472,14]
[341066002,1730321235117,-151.0,0.00034472,14]
[341066003,1730321235138,-151.0,0.00034472,14]
[341066004,1730321235160,-151.0,0.00034472,14]
[341066005,1730321235182,-151.0,0.00034472,14]
[341066006,1730321235203,-151.0,0.00034472,14]
[341066007,1730321235224,-151.0,0.00034472,14]
[341066008,1730321235245,-151.0,0.00034472,14]
[341066009,1730321235265,-151.0,0.00034472,14]
[341066010,1730321235286,-151.0,0.00034472,14]
[341066011,1730321235307,-151.0,0.00034472,14]
[341066012,1730321235330,-151.0,0.00034472,14]
[341066013,1730321235351,-151.0,0.00034472,14]
[341066014,1730321235373,-151.0,0.00034472,14]
[341066015,1730321235395,-228.916801,0.00034472,14]
[341066016,1730321235417,-386.365771,0.00034472,14]
[341066017,1730321235439,-386.365771,0.00034472,14]
[341066018,1730321235461,-386.365771,0.00034472,14]
[341066019,1730321235483,-386.365771,0.00034472,14]
[341066020,1730321235506,-386.365771,0.00034472,14]
[341066021,1730321235528,-386.365771,0.00034472,14]
[341066022,1730321235549,-386.365771,0.00034472,14]
[341066023,1730321235571,-386.365771,0.00034472,14]
[341066024,1730321235591,-386.365771,0.00034472,14]
[341066025,1730321235612,-386.365771,0.00034472,14]
[341066026,1730321235633,-386.365771,0.00034472,14]
[341066027,1730321235654,-386.365771,0.00034472,14]
[341066028,1730321235676,-386.365771,0.00034472,14]
[341066029,1730321235698,-386.365771,0.00034472,14]
[341066030,1730321235718,-386.365771,0.00034472,14]
[341066031,1730321235738,-386.365771,0.00034472,14]
[341066032,1730321235760,-386.365771,0.00034472,14]
[341066033,1730321235781,-386.365771,0.00034472,14]
[341066034,1730321235802,-386.365771,0.00034472,14]
[341066035,1730321235825,-386.365768,0.00034472,14]
[341066036,1730321235846,-151.0,0.00034472,14]
[341066037,1730321235868,-151.0,0.00034472,14]
[341066038,1730321235889,-165.483766,0.00034472,14]
[341066039,1730321235910,-165.483766,0.00034472,14]
[341066040,1730321235930,-165.483766,0.00034472,14]
[341066041,1730321236041,-165.483766,0.00034472,14]
[341066042,1730321236070,-165.483766,0.00034472,14]
[341066043,1730321236093,-165.483766,0.00034472,14]
[341066044,1730321236116,-165.483766,0.00034472,14]
[341066045,1730321236138,-165.483766,0.00034472,14]
[341066046,1730321236161,-165.483766,0.00034472,14]
[341066047,1730321236183,-165.483766,0.00034472,14]
[341066048,1730321236205,-165.483766,0.00034472,14]
[341066049,1730321236227,-165.483766,0.00034472,14]
[341066050,1730321236250,-165.483766,0.00034472,14]
[341066051,1730321236271,-165.483766,0.00034472,14]
[341066052,1730321236295,-165.483766,0.00034472,14]
[341066053,1730321236318,-165.483766,0.00034472,14]
[341066054,1730321236339,-165.483766,0.00034472,14]
[341066055,1730321236360,-165.483766,0.00034472,14]
[341066056,1730321236381,-165.483766,0.00034472,14]
[341066057,1730321236402,-165.48377,0.00034472,14]
[341066058,1730321236424,-151.0,0.00034472,14]
[341066059,1730321236445,-151.0,0.00034472,14]
[341066060,1730321236466,-168.687928,0.00034472,14]
[341066061,1730321236488,-151.0,0.00034472,14]
[341066062,1730321236510,-151.0,0.00034472,14]
[341066063,1730321236531,-151.0,0.00034472,14]
[341066064,1730321236552,-151.0,0.00034472,14]
[341066065,1730321236574,-151.0,0.00034472,14]
[341066066,1730321236596,-151.0,0.00034472,14]
[341066067,1730321236618,-151.0,0.00034472,14]
[341066068,1730321236639,-151.0,0.00034472,14]
[341066069,1730321236662,-151.0,0.00034472,14]
[341066070,1730321236684,-151.0,0.00034472,14]
[341066071,1730321236705,-151.0,0.00034472,14]
[341066072,1730321236726,-151.0,0.00034472,14]
[341066073,1730321236747,-151.0,0.00034472,14]
[341066074,1730321236769,-396.617916,0.00034472,14]
[341066075,1730321236790,-396.617916,0.00034472,14]
[341066076,1730321236819,-396.617916,0.00034472,14]
[341066077,1730321236842,-396.617916,0.00034472,14]
[341066078,1730321236865,-396.617916,0.00034472,14]
[341066079,1730321236888,-396.617916,0.00034472,14]
[341066080,1730321236910,-396.617916,0.00034472,14]
[341066081,1730321236932,-396.617916,0.00034472,14]
[341066082,1730321236957,-396.617916,0.00034472,14]
[341066083,1730321236980,-396.617916,0.00034472,14]
[341066084,1730321237004,-396.617916,0.00034472,14]
[341066085,1730321237026,-396.617916,0.00034472,14]
[341066086,1730321237163,-396.617916,0.00034472,14]
[341066087,1730321237185,-396.617916,0.00034472,14]
[341066088,1730321237205,-396.617916,0.00034472,14]
[341066089,1730321237227,-396.617916,0.00034472,14]
[341066090,1730321237248,-396.617916,0.00034472,14]
[341066091,1730321237271,-396.617916,0.00034472,14]
[341066092,1730321237292,-396.617916,0.00034472,14]
[341066093,1730321237316,-396.617914,0.00034472,14]
[341066094,1730321237337,-151.0,0.00034472,14]
[341066095,1730321237360,-151.0,0.00034472,14]
[341066096,1730321237381,-151.0,0.00034472,14]
[341066097,1730321237403,-151.0,0.00034472,14]
[341066098,1730321237426,-151.0,0.00034472,14]
[341066099,1730321237448,-151.0,0.00034472,14]
[341066100,1730321237469,-151.0,0.00034472,14]
[341066101,1730321237491,-151.0,0.00034472,14]
[341066102,1730321237513,-151.0,0.00034472,14]
[341066103,1730321237536,-151.0,0.00034472,14]
[341066104,1730321237558,-151.0,0.00034472,14]
[341066105,1730321237583,-151.0,0.00034472,14]
[341066106,1730321237605,-151.0,0.00034472,14]
[341066107,1730321237626,-230.23853,0.00034472,14]
[341066108,1730321237648,-332.628882,0.00034472,14]
[341066109,1730321237669,-332.628882,0.00034472,14]
[341066110,1730321237689,-332.628882,0.00034472,14]
[341066111,1730321237710,-332.628882,0.00034472,14]
[341066112,1730321237732,-332.628882,0.00034472,14]
[341066113,1730321237754,-332.628882,0.00034472,14]
[341066114,1730321237776,-332.628882,0.00034472,14]
[341066115,1730321237797,-332.628882,0.00034472,14]
[341066116,1730321237820,-332.628882,0.00034472,14]
[341066117,1730321237840,-332.628882,0.00034472,14]
[341066118,1730321237860,-332.628882,0.00034472,14]
[341066119,1730321237881,-332.628882,0.00034472,14]
[341066120,1730321237902,-332.628882,0.00034472,14]
[341066121,1730321237923,-151.0,0.00034472,14]
[341066122,1730321237944,-332.628882,0.00034472,14]
[341066123,1730321237968,-151.0,0.00034472,14]
[341066124,1730321237989,-332.628882,0.00034472,14]
[341066125,1730321238012,-169.999149,0.00034472,14]
[341066126,1730321238033,-332.628882,0.00034472,14]
[341066127,1730321238056,-332.628882,0.00034472,14]
[341066128,1730321238081,-332.628882,0.00034472,14]